bitfinex-derivatives/quotes_BNBF0:USTF0_20250309
["timestamp","ask_amount","ask_price","bid_price","bid_amount"]
[1741522287724,0.505,575.98,574.81,0.29185643]
[1741522288823,0.505,575.98,574.83,0.34792895]
[1741522289022,0.30239702,575.97,574.84,0.29185643]
[1741522289224,0.505,575.98,574.84,0.29185643]
[1741522289723,0.505,575.98,574.86,0.34791079]
[1741522289921,0.505,575.98,574.87,0.29185643]
[1741522290226,0.505,575.98,574.89,0.34789264]
[1741522290424,0.505,575.98,574.9,0.29182422]
[1741522290625,0.505,575.98,574.92,0.34787448]
[1741522290824,0.505,575.98,574.93,0.29182422]
[1741522291219,0.505,575.98,574.69,0.30240227]
[1741522291220,0.505,575.98,574.95,0.34785633]
[1741522291420,0.505,575.98,574.96,0.29180576]
[1741522291620,0.505,575.98,574.97,0.34784423]
[1741522291821,0.505,575.98,574.98,0.29180576]
[1741522293020,0.505,575.98,574.99,0.34783213]
[1741522293225,0.505,575.98,575.0,0.29180576]
[1741522293425,0.505,575.98,575.01,0.34782003]
[1741522293626,0.505,575.98,575.02,0.29180576]
[1741522293821,0.505,575.98,575.03,0.34780794]
[1741522294225,0.505,575.98,575.04,0.29180576]
[1741522294426,0.505,575.98,575.05,0.34779584]
[1741522294627,0.505,575.98,575.06,0.29180576]
[1741522294926,0.505,575.98,575.07,0.34778374]
[1741522295127,0.505,575.98,575.08,0.29180576]
[1741522295322,0.505,575.98,575.09,0.34777165]
[1741522295527,0.505,575.98,575.1,0.29180576]
[1741522295727,0.505,575.98,575.1,0.63957136]
[1741522295929,0.505,575.98,575.11,0.29180576]
[1741522296330,0.505,575.98,575.1,0.3477656]
[1741522296629,0.505,575.98,575.11,0.29182521]
[1741522297426,0.505,575.98,575.12,0.34775351]
[1741522297626,0.505,575.98,575.13,0.29182521]
[1741522297831,0.505,575.98,575.14,0.34774141]
[1741522298131,0.505,575.98,575.15,0.29182521]
[1741522300128,0.505,575.98,575.15,0.63956058]
[1741522300432,0.505,575.98,575.16,0.29182521]
[1741522301229,0.505,575.98,575.15,0.34773537]
[1741522301427,0.505,575.98,575.16,0.29181034]
[1741522301929,0.505,575.98,575.15,0.34773537]
[1741522302133,0.505,575.98,575.16,0.29181894]
[1741522302333,0.505,575.98,575.15,0.34773537]
[1741522302732,0.505,575.98,575.16,0.29182495]
[1741522303336,0.505,575.98,575.17,0.29181025]
[1741522303637,0.505,575.98,575.18,0.29181025]
[1741522303833,0.505,575.98,575.16,0.29181025]
[1741522306834,0.505,575.98,575.17,0.29182732]
[1741522307034,0.505,575.98,575.18,0.29182732]
[1741522307338,0.505,575.98,575.19,0.29182732]
[1741522307739,0.505,575.98,575.2,0.29182732]
[1741522307933,0.505,575.98,575.15,0.34773537]
[1741522307934,0.505,575.98,575.16,0.29182732]
[1741522309842,1.27865714,576.63,575.16,0.29182732]
[1741522310044,0.30225519,576.0,575.16,0.29182732]
[1741522310244,0.34685489,576.61,575.16,0.29182732]
[1741522310445,0.31921534,576.6,575.16,0.29182732]
[1741522310645,1.27865714,576.63,575.16,0.29182732]
[1741522310646,0.34687294,576.58,575.16,0.29182732]
[1741522310845,0.31921534,576.57,575.16,0.29182732]
[1741522311242,0.34689098,576.55,575.16,0.29182732]
[1741522311448,0.31921534,576.54,575.16,0.29182732]
[1741522311748,0.34690302,576.53,575.16,0.29182732]
[1741522311947,0.31921534,576.52,575.16,0.29182732]
[1741522312547,0.34691505,576.51,575.16,0.29182732]
[1741522312749,0.31921534,576.5,575.16,0.29182732]
[1741522313048,0.34692709,576.49,575.16,0.29182732]
[1741522313350,0.31921534,576.48,575.16,0.29182732]
[1741522313546,0.66615446,576.47,575.16,0.85682732]
[1741522313749,0.66616048,576.46,575.17,0.29182732]
[1741522313949,0.6661665,576.45,575.17,0.29182732]
[1741522314249,0.66617252,576.44,575.17,0.29182732]
[1741522314549,0.66617854,576.43,575.17,0.29182732]
[1741522314744,0.66618456,576.42,575.17,0.29182732]
[1741522315044,0.66619058,576.41,575.17,0.29182732]
[1741522315245,0.6661966,576.4,575.17,0.29182732]
[1741522315443,0.66620262,576.39,575.17,0.29182732]
[1741522315744,0.66620864,576.38,575.17,0.29182732]
[1741522315949,0.34699932,576.37,575.17,0.29182732]
[1741522316249,0.31921534,576.36,575.17,0.29182732]
[1741522316450,0.34701136,576.35,575.17,0.29182732]
[1741522316645,0.31921534,576.34,575.17,0.29182732]
[1741522317148,0.31921534,576.34,575.18,0.34771723]
[1741522317344,0.31921534,576.34,575.19,0.29182732]
[1741522317749,0.31919912,576.33,575.2,0.29179247]
[1741522317951,0.31919912,576.34,575.19,0.29179247]
[1741522318150,0.31919912,576.33,575.2,0.29179247]
[1741522318354,0.31919912,576.34,575.19,0.29179247]
[1741522318554,0.31919912,576.33,575.2,0.29179247]
[1741522318752,0.31919912,576.34,575.19,0.29179247]
[1741522319153,0.34701136,576.35,575.18,0.34771723]
[1741522319357,0.31920422,576.34,575.19,0.29179747]
[1741522320960,0.302267,576.33,575.19,0.29179747]
[1741522321157,0.31920422,576.32,575.19,0.29179747]
[1741522322262,0.66623364,576.32,575.19,0.29179747]
[1741522322468,0.66623966,576.31,575.19,0.29179747]
[1741522322663,0.31920422,576.3,575.19,0.29179747]
[1741522324164,0.30228276,576.29,575.19,0.29179747]
[1741522324375,0.31920422,576.28,575.19,0.29179747]
[1741522325759,0.31920422,576.28,575.2,0.34770514]
[1741522326062,0.31920422,576.28,575.21,0.29179747]
[1741522326265,0.31920422,576.28,575.22,0.34769305]
[1741522326466,0.31920422,576.28,575.23,0.29179747]
[1741522326665,0.31920422,576.28,575.24,0.34768096]
[1741522326862,0.31920422,576.3,575.25,0.29179747]
[1741522327063,0.30225125,576.27,575.25,0.63947239]
[1741522327265,0.30225125,576.27,575.26,0.29179747]
[1741522327464,0.31917291,576.26,575.26,0.29179747]
[1741522327772,0.30225125,576.27,575.26,0.29179747]
[1741522328863,0.30225125,576.27,575.27,0.34766283]
[1741522329059,0.30225125,576.27,575.28,0.29179747]
[1741522329263,0.30225125,576.27,575.29,0.34765075]
[1741522329464,0.30225125,576.27,575.3,0.29179747]
[1741522329967,0.30225125,576.27,575.31,0.29173642]
[1741522330174,0.30225125,576.27,575.3,0.29173642]
[1741522330364,0.30225125,576.27,575.31,0.29173642]
[1741522330564,0.30225125,576.27,575.29,0.34765075]
[1741522330565,0.30225125,576.27,575.32,0.29173642]
[1741522330775,0.30225125,576.27,575.3,0.29173642]
[1741522330966,0.30225125,576.27,575.31,0.29173642]
[1741522331165,0.30225125,576.27,575.3,0.29173642]
[1741522331366,0.30225125,576.27,575.31,0.29173642]
[1741522331570,0.30225125,576.27,575.32,0.34763262]
[1741522331767,0.30225125,576.27,575.33,0.29171084]
[1741522332372,0.30225125,576.27,575.34,0.34762053]
[1741522332572,0.30225125,576.27,575.35,0.29171084]
[1741522332772,0.34703544,576.31,575.35,0.29171084]
[1741522332973,0.30220925,576.26,575.35,0.29171084]
[1741522335372,0.30220925,576.26,575.36,0.29170618]
[1741522335575,0.30220925,576.26,575.34,0.34762053]
[1741522335576,0.30220925,576.26,575.35,0.29170618]
[1741522335776,0.34703544,576.31,575.36,0.29170618]
[1741522335979,0.34703544,576.31,575.35,0.29170618]
[1741522336977,0.34703544,576.31,575.34,0.34762053]
[1741522337169,0.3021922,576.3,575.35,0.29172955]
[1741522342276,0.534,576.29,575.34,0.34762053]
[1741522342478,0.534,576.29,575.35,0.291718]
[1741522344084,0.534,576.29,575.36,0.29171772]
[1741522344278,0.534,576.29,575.35,0.29171772]
[1741522344481,0.534,576.29,575.36,0.29171772]
[1741522344684,0.534,576.29,575.37,0.29171772]
[1741522345085,0.30221844,576.28,575.37,0.29171772]
[1741522345280,0.30221844,576.28,575.38,0.29171772]
[1741522345486,0.30221844,576.28,575.39,0.29171772]
[1741522345686,0.30221844,576.28,575.4,0.29171772]
[1741522345984,0.30221844,576.28,575.41,0.29171772]
[1741522346182,0.30221844,576.28,575.35,0.29171772]
[1741522347386,0.30221844,576.28,575.36,0.34760845]
[1741522347585,0.30221844,576.28,575.37,0.29171772]
[1741522347782,0.534,576.29,575.38,0.34759637]
[1741522347989,0.534,576.29,575.39,0.291669]
[1741522349184,0.30219351,576.28,575.39,0.291669]
[1741522350688,0.534,576.29,575.39,0.291669]
[1741522351887,0.534,576.29,575.4,0.34758428]
[1741522352083,0.534,576.29,575.41,0.291669]
[1741522352285,0.534,576.29,575.42,0.3475722]
[1741522352589,0.534,576.29,575.43,0.291669]
[1741522352790,0.534,576.29,575.43,0.63923516]
[1741522352983,0.534,576.29,575.44,0.291669]
[1741522354890,0.534,576.29,575.43,0.34756616]
[1741522359602,0.534,576.29,575.44,0.29153339]
[1741522359904,0.534,576.29,575.45,0.34755408]
[1741522360104,0.534,576.29,575.46,0.29153339]
[1741522361307,0.3019156,576.64,575.46,0.29153339]
[1741522362306,0.3019156,576.64,575.47,0.29151062]
[1741522362609,0.3019156,576.64,575.48,0.29151062]
[1741522362807,1.27865714,577.28,575.46,0.29151062]
[1741522363001,0.301968,576.63,575.48,0.34753596]
[1741522363204,0.34646433,577.26,575.49,0.29151062]
[1741522363406,0.31892215,577.25,575.51,0.34751785]
[1741522363607,0.31892215,577.25,575.52,0.29151062]
[1741522364103,0.30196538,577.24,575.53,0.34750577]
[1741522364305,0.89992215,577.23,575.54,0.29151062]
[1741522364505,0.89992215,577.23,575.55,0.3474937]
[1741522364708,0.34649434,577.21,575.55,0.3474937]
[1741522364906,0.31892215,577.2,575.56,0.29151062]
[1741522366010,0.62085931,577.19,575.55,0.3474937]
[1741522366210,0.31890048,577.18,575.55,0.3474937]
[1741522367812,0.34652436,577.16,575.55,0.3474937]
[1741522368009,0.31890048,577.15,575.55,0.3474937]
[1741522368214,0.34654237,577.13,575.55,0.3474937]
[1741522368413,0.31890048,577.12,575.55,0.3474937]
[1741522369408,0.34655438,577.11,575.55,0.3474937]
[1741522370008,0.31889939,577.1,575.55,0.3474937]
[1741522370713,0.31889939,577.1,575.56,0.29149108]
[1741522371114,0.34655438,577.11,575.55,0.3474937]
[1741522371315,0.31889393,577.1,575.56,0.29149148]
[1741522371615,0.31889393,577.09,575.57,0.29149148]
[1741522371909,0.31889393,577.08,575.56,0.29149148]
[1741522372124,0.31889393,577.07,575.57,0.29149148]
[1741522372313,0.31889393,577.06,575.56,0.29149148]
[1741522372509,0.31889393,577.05,575.57,0.29149148]
[1741522372713,0.31889393,577.04,575.58,0.29149148]
[1741522373010,0.31889393,577.03,575.59,0.34746955]
[1741522373315,0.31889393,577.02,575.6,0.29149148]
[1741522373516,0.31889393,577.01,575.6,0.29149148]
[1741522373716,0.31889393,577.0,575.6,0.29149148]
[1741522373915,0.66552038,576.99,575.61,0.34745747]
[1741522374211,0.66552639,576.98,575.62,0.29149148]
[1741522374415,0.6655324,576.97,575.63,0.3474454]
[1741522374714,0.66553841,576.96,575.64,0.29149148]
[1741522374917,0.31889393,576.95,575.65,0.34743333]
[1741522375109,0.31889393,576.95,575.66,0.29149148]
[1741522375310,0.31889393,576.95,575.67,0.34742126]
[1741522375516,0.31889393,576.95,575.68,0.29149148]
[1741522375710,0.31889393,576.95,575.69,0.34740919]
[1741522375915,0.31889393,576.95,575.7,0.29149148]
[1741522376618,0.66554441,576.95,575.71,0.34739712]
[1741522376914,0.31889393,576.94,575.72,0.29149148]
[1741522377117,0.31889393,576.94,575.73,0.34738505]
[1741522377318,0.3466625,576.93,575.74,0.29149148]
[1741522377512,0.31889393,576.92,575.74,0.29149148]
[1741522377911,0.34667452,576.91,575.74,0.29149148]
[1741522378117,0.31889393,576.9,575.74,0.29149148]
[1741522379918,0.34668654,576.89,575.74,0.29149148]
[1741522380218,0.31889393,576.88,575.74,0.29149148]
[1741522380419,0.34669856,576.87,575.74,0.29149148]
[1741522380619,0.31889393,576.86,575.74,0.29149148]
[1741522380814,0.34671058,576.85,575.74,0.29149148]
[1741522381019,0.31889393,576.84,575.74,0.29149148]
[1741522381319,0.3467226,576.83,575.73,0.34738505]
[1741522381519,0.31893509,576.82,575.74,0.29153208]
[1741522382220,0.30201648,576.81,575.74,0.29153208]
[1741522382421,0.31893509,576.8,575.74,0.29153208]
[1741522383528,0.31893509,576.8,575.75,0.34737299]
[1741522383819,0.3467226,576.83,575.75,0.34737299]
[1741522383820,0.3467226,576.83,575.76,0.29153208]
[1741522384220,0.3467226,576.83,575.75,0.34737299]
[1741522385020,0.30195752,576.82,575.75,0.34737299]
[1741522386723,0.3467226,576.83,575.75,0.34737299]
[1741522387124,0.30198503,576.81,575.75,0.34737299]
[1741522389818,0.3467226,576.83,575.75,0.34737299]
[1741522390225,0.31895043,576.82,575.75,0.34737299]
[1741522390523,0.66570058,576.81,575.75,0.34737299]
[1741522390726,0.66570659,576.8,575.75,0.34737299]
[1741522390917,0.6657126,576.79,575.75,0.34737299]
[1741522391122,0.66571862,576.78,575.75,0.34737299]
[1741522391322,0.31896596,576.77,575.75,0.34737299]
[1741522392122,0.34675266,576.78,575.75,0.34737299]
[1741522392318,0.31896001,576.77,575.75,0.34737299]
[1741522392519,0.95096001,576.77,575.75,0.34737299]
[1741522392718,0.31896001,576.76,575.75,0.34737299]
[1741522393129,0.62101188,576.76,575.75,0.34737299]
[1741522393329,0.31896001,576.75,575.75,0.34737299]
[1741522394129,0.30205187,576.76,575.75,0.34737299]
[1741522394331,0.31896958,576.75,575.75,0.34737299]
[1741522394942,0.30205187,576.76,575.75,0.34737299]
[1741522395834,0.632,576.77,575.75,0.34737299]
[1741522396032,0.30203614,576.75,575.75,0.34737299]
[1741522397629,0.31892582,576.74,575.76,0.29152267]
[1741522399036,0.632,576.77,575.76,0.29152267]
[1741522399236,0.30198765,576.73,575.76,0.29152267]
[1741522401137,0.30198765,576.73,575.75,0.34737299]
[1741522401333,0.30198765,576.73,575.76,0.2915002]
[1741522401831,0.632,576.77,575.76,0.2915002]
[1741522402038,0.30198503,576.72,575.76,0.2915002]
[1741522407933,0.34675266,576.78,575.76,0.2915002]
[1741522408132,0.30199682,576.71,575.76,0.2915002]
[1741522408539,0.34675266,576.78,575.76,0.2915002]
[1741522409138,0.30194049,576.77,575.76,0.2915002]
[1741522410740,0.54,576.76,575.76,0.2915002]
[1741522411140,0.84198372,576.76,575.76,0.2915002]
[1741522411640,0.31888368,576.75,575.76,0.2915002]
[1741522411841,0.84198372,576.76,575.77,0.29148168]
[1741522412041,0.84198372,576.76,575.76,0.29148168]
[1741522412234,0.31888967,576.75,575.77,0.29148168]
[1741522412438,0.31888967,576.75,575.78,0.29148168]
[1741522412641,0.31888967,576.75,575.76,0.29148168]
[1741522412941,0.84198372,576.76,575.77,0.29148168]
[1741522413141,0.84198372,576.76,575.76,0.29148168]
[1741522413336,0.84198372,576.76,575.77,0.29148168]
[1741522413741,0.84198372,576.76,575.75,0.34737299]
[1741522413742,0.84198372,576.76,575.78,0.29148168]
[1741522413943,0.54,576.76,575.76,0.29148168]
[1741522414143,0.30198634,576.75,575.77,0.29148168]
[1741522414337,0.30198634,576.75,575.76,0.29148168]
[1741522414536,0.30198634,576.75,575.77,0.29148168]
[1741522414737,0.30198634,576.75,575.76,0.29148168]
[1741522414938,0.30198634,576.75,575.77,0.29148168]
[1741522415137,0.30198634,576.75,575.76,0.29148168]
[1741522415337,0.30198634,576.75,575.77,0.29148168]
[1741522415643,0.30198634,576.75,575.78,0.29148168]
[1741522415841,0.30198634,576.75,575.79,0.29148168]
[1741522416041,0.30198634,576.75,575.8,0.29148168]
[1741522416245,0.30198634,576.75,575.76,0.29148168]
[1741522416447,0.30198634,576.75,575.77,0.29148168]
[1741522416744,0.54,576.76,575.75,0.64935933]
[1741522416745,0.54,576.76,575.78,0.29148168]
[1741522416939,0.54,576.76,575.79,0.29148168]
[1741522417142,0.30198634,576.74,575.76,0.30198634]
[1741522417339,0.30198634,576.74,575.77,0.2914817]
[1741522418942,0.30198634,576.74,575.78,0.29148873]
[1741522419141,0.30198634,576.74,575.77,0.29148873]
[1741522419448,0.30198634,576.74,575.78,0.29148873]
[1741522419648,0.30198634,576.74,575.77,0.29148873]
[1741522419849,0.54,576.76,575.77,0.29148873]
[1741522420050,0.3019811,576.73,575.76,0.59346983]
[1741522420251,0.3019811,576.73,575.77,0.29148873]
[1741522421146,0.3019811,576.73,575.76,0.3019811]
[1741522421951,0.3019811,576.73,575.75,0.34737299]
[1741522422254,0.31893903,576.72,575.75,0.34737299]
[1741522422754,0.31893903,576.72,575.76,0.2915446]
[1741522422958,0.31893903,576.72,575.75,0.34737299]
[1741522423959,0.31893903,576.72,575.76,0.48]
[1741522424460,0.31898423,576.71,575.76,0.48]
[1741522424659,0.31898423,576.72,575.76,0.48]
[1741522424861,0.31898423,576.71,575.76,0.48]
[1741522425160,0.3019811,576.73,575.76,0.48]
[1741522425161,0.31898423,576.7,575.76,0.48]
[1741522425359,0.31898423,576.72,575.76,0.48]
[1741522425559,0.31898423,576.71,575.76,0.48]
[1741522425758,0.31898423,576.72,575.76,0.48]
[1741522425961,0.31898423,576.71,575.76,0.48]
[1741522426156,0.31898885,576.7,575.76,0.48]
[1741522426355,0.31898885,576.69,575.76,0.48]
[1741522426562,0.31898885,576.72,575.76,0.48]
[1741522426761,0.3019811,576.73,575.76,0.48]
[1741522427060,0.66578003,576.72,575.76,0.48]
[1741522427260,0.3189913,576.71,575.76,0.48]
[1741522430157,0.30205711,576.7,575.76,0.48]
[1741522430361,0.3189913,576.69,575.76,0.48]
[1741522430964,0.34681279,576.68,575.76,0.48]
[1741522431263,0.3189913,576.67,575.76,0.48]
[1741522431764,0.34681279,576.68,575.76,0.48]
[1741522433156,0.30204794,576.67,575.76,0.48]
[1741522436470,0.30204794,576.67,575.77,0.29150181]
[1741522436768,0.30204794,576.67,575.76,0.48]
[1741522436962,0.30204794,576.67,575.77,0.29149737]
[1741522437871,0.34681279,576.68,575.77,0.29149737]
[1741522438066,0.64880699,576.68,575.77,0.29149737]
[1741522438567,0.64880699,576.68,575.76,0.48]
[1741522438764,0.64880699,576.68,575.77,0.29149631]
[1741522439972,0.3019942,576.68,575.78,0.34735489]
[1741522440172,0.3019942,576.68,575.79,0.29149631]
[1741522440369,0.3019942,576.68,575.78,0.34735489]
[1741522440571,0.3019942,576.68,575.79,0.29148576]
[1741522440769,0.3019942,576.68,575.79,0.63883461]
[1741522440970,0.3019942,576.68,575.8,0.29148576]
[1741522442967,0.527,576.67,575.8,0.29148576]
[1741522454978,0.527,576.67,575.81,0.34733679]
[1741522455184,0.527,576.67,575.82,0.29148576]
[1741522457684,0.527,576.67,575.83,0.29146364]
[1741522457979,0.527,576.67,575.84,0.29146364]
[1741522458186,0.527,576.67,575.82,0.29146364]
[1741522458485,0.527,576.67,575.83,0.29146364]
[1741522458682,0.527,576.67,575.82,0.29146364]
[1741522458883,0.527,576.67,575.83,0.29146364]
[1741522459082,0.527,576.67,575.82,0.29146364]
[1741522459484,0.527,576.67,575.83,0.34732473]
[1741522459788,0.527,576.67,575.84,0.29146364]
[1741522460186,0.527,576.67,575.85,0.34731266]
[1741522460384,0.527,576.67,575.86,0.29146364]
[1741522460585,0.527,576.67,575.87,0.3473006]
[1741522460781,0.527,576.67,575.88,0.29146364]
[1741522461087,0.527,576.67,575.88,0.63875821]
[1741522461287,0.527,576.67,575.88,0.34729457]
[1741522461488,0.527,576.67,575.89,0.29142596]
[1741522463683,0.527,576.67,575.9,0.34728251]
[1741522463885,0.527,576.67,575.91,0.29142596]
[1741522464083,0.527,576.67,575.92,0.34727045]
[1741522464287,0.527,576.67,575.93,0.29142596]
[1741522464487,0.527,576.67,575.94,0.34725839]
[1741522464788,0.527,576.67,575.95,0.29142596]
[1741522464988,0.527,576.67,575.94,0.34725839]
[1741522465187,0.527,576.67,575.95,0.29138691]
[1741522466188,0.527,576.67,575.96,0.34724633]
[1741522466483,0.527,576.67,575.97,0.29138691]
[1741522466686,0.527,576.67,575.96,0.34724633]
[1741522466889,0.527,576.67,575.97,0.29138069]
[1741522467088,0.527,576.67,575.97,0.63862099]
[1741522467289,0.527,576.67,575.98,0.29138069]
[1741522472191,0.3019287,576.73,575.97,0.3472403]
[1741522473895,1.27865714,577.19,575.97,0.3472403]
[1741522474094,0.34651835,577.17,575.97,0.3472403]
[1741522474294,0.3188714,577.16,575.97,0.3472403]
[1741522474496,0.34653036,577.15,575.97,0.3472403]
[1741522474692,0.3188714,577.14,575.97,0.3472403]
[1741522474889,0.34654237,577.13,575.97,0.3472403]
[1741522475089,0.3188714,577.12,575.97,0.3472403]
[1741522475295,0.34655438,577.11,575.97,0.3472403]
[1741522475492,0.3188714,577.1,575.97,0.3472403]
[1741522475689,0.34656639,577.09,575.97,0.3472403]
[1741522475894,0.3188714,577.08,575.97,0.3472403]
[1741522476092,0.3465784,577.07,575.97,0.3472403]
[1741522476293,0.3188714,577.06,575.97,0.3472403]
[1741522476596,0.34659041,577.05,575.97,0.3472403]
[1741522476791,0.3188714,577.04,575.97,0.3472403]
[1741522476997,0.31888612,577.03,575.97,0.3472403]
[1741522477197,0.31888612,577.04,575.97,0.3472403]
[1741522477401,0.31888612,577.03,575.97,0.3472403]
[1741522477595,0.34660843,577.02,575.97,0.3472403]
[1741522477792,0.31888612,577.01,575.97,0.3472403]
[1741522477997,0.6208515,577.01,575.76,0.48]
[1741522478197,0.31888612,577.0,575.77,0.29150196]
[1741522478398,0.66550657,577.0,575.77,0.29150196]
[1741522478696,0.31888612,576.99,575.77,0.29150196]
[1741522479093,0.31888612,576.99,575.74,0.29150196]
[1741522479299,0.34663246,576.98,575.78,0.29150196]
[1741522479493,0.31888612,576.97,575.79,0.29150196]
[1741522479799,0.34664448,576.96,575.8,0.29150196]
[1741522479999,0.34664448,576.96,575.74,0.29150196]
[1741522480000,0.31888612,576.95,575.74,0.29150196]
[1741522480298,0.34665649,576.94,575.75,0.29150401]
[1741522480500,0.31888612,576.93,575.74,0.29150401]
[1741522480692,0.34666851,576.92,575.75,0.29150401]
[1741522480896,0.31888612,576.91,575.74,0.29150401]
[1741522481098,0.34668053,576.9,575.76,0.29150401]
[1741522481298,0.31888612,576.89,575.77,0.29150401]
[1741522481499,0.31888612,576.89,575.74,0.29150401]
[1741522481699,0.31888612,576.89,575.75,0.29150401]
[1741522481896,0.31888612,576.89,575.74,0.29150401]
[1741522482096,0.31888612,576.89,575.76,0.554]
[1741522482298,0.31888612,576.89,575.77,0.29150401]
[1741522483501,0.30196669,576.88,575.77,0.29150401]
[1741522483701,0.31888612,576.87,575.77,0.29150401]
[1741522486002,0.31888612,576.89,575.77,0.29150401]
[1741522486197,0.30196931,576.86,575.77,0.29150401]
[1741522486399,0.31888612,576.85,575.77,0.29150401]
[1741522488308,0.3189109,576.84,575.78,0.29150826]
[1741522488505,0.3189109,576.85,575.77,0.29150826]
[1741522488707,0.3189109,576.84,575.78,0.29150826]
[1741522488904,0.3189109,576.85,575.76,0.554]
[1741522489111,0.3189109,576.84,575.77,0.2915101]
[1741522489310,0.3189109,576.83,575.76,0.554]
[1741522489504,0.3189109,576.89,575.76,0.554]
[1741522489702,0.34668053,576.9,575.76,0.554]
[1741522489703,0.3189109,576.88,575.76,0.554]
[1741522489903,0.34668053,576.9,575.76,0.554]
[1741522490107,0.30202172,576.87,575.76,0.554]
[1741522490311,0.31893009,576.86,575.77,0.29152463]
[1741522490609,0.66563466,576.86,575.77,0.29152463]
[1741522490809,0.31893009,576.85,575.77,0.29152463]
[1741522491907,0.31893009,576.85,575.76,0.554]
[1741522492110,0.34670457,576.86,575.76,0.554]
[1741522493111,0.30198634,576.85,575.76,0.90136695]
[1741522494807,0.34670457,576.86,575.76,0.90136695]
[1741522496111,0.30189334,576.85,575.76,0.90136695]
[1741522497911,0.34670457,576.86,575.76,0.90136695]
[1741522498112,0.30197193,576.84,575.76,0.90136695]
[1741522498516,0.492,576.83,575.76,0.90136695]
[1741522501217,0.30197455,576.82,575.76,0.90136695]
[1741522501518,0.492,576.83,575.76,0.90136695]
[1741522502213,0.30197193,576.82,575.76,0.90136695]
[1741522503921,0.492,576.83,575.76,0.90136695]
[1741522504319,0.30197586,576.81,575.77,0.34736092]
[1741522504513,0.30197586,576.81,575.78,0.29140375]
[1741522505413,0.30197586,576.81,575.79,0.34734885]
[1741522506915,0.492,576.83,575.79,0.34734885]
[1741522508121,0.3019418,576.82,575.79,0.34734885]
[1741522509718,0.3019418,576.82,575.8,0.29141108]
[1741522509922,0.492,576.83,575.81,0.34733679]
[1741522510218,0.30194311,576.81,575.81,0.34733679]
[1741522510522,0.30194311,576.81,575.82,0.29141218]
[1741522510721,0.30194311,576.81,575.83,0.34732473]
[1741522512621,0.30194311,576.81,575.84,0.29140665]
[1741522512826,0.492,576.83,575.84,0.29140665]
[1741522513326,0.30194573,576.8,575.84,0.29140665]
[1741522514419,0.30194573,576.8,575.85,0.34731266]
[1741522515329,0.30194573,576.8,575.86,0.29140402]
[1741522515525,0.30194573,576.8,575.87,0.3473006]
[1741522515727,0.30194573,576.8,575.88,0.29140402]
[1741522515927,0.492,576.83,575.89,0.34728854]
[1741522516128,0.30192739,576.79,575.89,0.34728854]
[1741522518932,0.492,576.83,575.89,0.34728854]
[1741522519628,0.492,576.83,575.9,0.29142617]
[1741522519831,0.31883002,576.82,575.9,0.29142617]
[1741522520031,0.62077706,576.82,575.9,0.29142617]
[1741522520232,0.30194704,576.82,575.9,0.29142617]
[1741522521838,0.492,576.83,575.9,0.29142617]
[1741522522039,0.31882675,576.82,575.9,0.29142617]
[1741522522239,0.492,576.83,575.89,0.34728854]
[1741522522641,0.47735585,576.83,575.89,0.34728854]
[1741522523140,0.30196407,576.82,575.89,0.34728854]
[1741522524841,0.47735585,576.83,575.89,0.34728854]
[1741522526140,0.30197717,576.82,575.89,0.34728854]
[1741522527939,0.34670457,576.86,575.89,0.34728854]
[1741522528137,0.30197193,576.81,575.89,0.34728854]
[1741522530837,0.34670457,576.86,575.9,0.29073216]
[1741522531041,0.30194835,576.8,575.9,0.29073216]
[1741522532145,0.438,576.79,575.9,0.29073216]
[1741522532345,0.438,576.79,575.89,0.34728854]
[1741522532537,0.438,576.79,575.9,0.29072853]
[1741522534146,0.438,576.79,575.91,0.29071937]
[1741522534343,0.438,576.79,575.9,0.29071937]
[1741522534540,0.438,576.79,575.91,0.29071937]
[1741522534737,0.438,576.79,575.9,0.29071937]
[1741522534939,0.438,576.79,575.91,0.29071937]
[1741522535142,0.30192608,576.78,575.92,0.29071937]
[1741522535337,0.30192608,576.78,575.93,0.29071937]
[1741522535541,0.30192608,576.78,575.94,0.29071937]
[1741522535742,0.30192608,576.78,575.95,0.29071937]
[1741522535946,0.30192608,576.78,575.9,0.29071937]
[1741522536245,0.30192608,576.78,575.91,0.29071937]
[1741522536445,0.30192608,576.78,575.92,0.29071937]
[1741522536646,0.30192608,576.78,575.93,0.29071937]
[1741522536945,0.438,576.79,575.94,0.29071937]
[1741522537145,0.438,576.79,575.89,0.34728854]
[1741522537146,0.438,576.79,575.9,0.29071937]
[1741522537444,0.30193525,576.77,575.91,0.29071937]
[1741522537645,0.30193525,576.77,575.92,0.29071937]
[1741522537844,0.30193525,576.77,575.9,0.29071937]